[Event "WYCC 2018 O18"]
[Site "Halkidiki"]
[Date "2018.10.22"]
[Round "4"]
[White "Szustakowski, Antoni"]
[Black "Stavropoulos, Konstantinos"]
[Result "1-0"]
[ECO "E11"]
[WhiteElo "2319"]
[BlackElo "2045"]
[Annotator "NA"]
[PlyCount "81"]
[EventDate "2018.10.20"]
[EventType "swiss"]
[EventCountry "GRE"]
[SourceTitle "playchess.com"]
[Source "ChessBase"]
[SourceQuality "1"]
[TimeControl "40/5400+30:1800+30"]

1. d4 {[%emt 0:00:00]} Nf6 {[%emt 0:00:00]} 2. c4 {[%emt 0:00:00]} e6 {[%emt 0:00:06]} 3. Nf3 {[%emt 0:00:00]} Bb4+ {[%emt 0:00:35]} 4. Nbd2 {[%emt 0:00:00]} b6 {[%emt 0:01:03]} 5. e3 {[%emt 0:00:22]} Bb7 {[%emt 0:00:23]} 6. Bd3 {[%emt 0:00:35]} Bxd2+ {[%emt 0:01:28] E14: Queen's Indian: Classical Variation (4 e3)} (6... O-O 7. O-O c5 8. a3 Bxd2 9. Bxd2 d6 10. b4 Ne4 11. Bc1 Nd7 12. Bb2 f5 13. Nd2 Nxd2 14. Qxd2 Qe7 15. Rad1 e5 16. dxc5 bxc5 17. b5 Rf6 {0-1 (38) Ganguly,S (2652)-Eljanov,P (2717) Berlin 2015}) 7. Qxd2 {[%emt 0:00:57]} Ne4 {[%emt 0:01:49]} 8. Qc2 {[%emt 0:00:23]} f5 {[%emt 0:00:43]} 9. O-O {[%emt 0:00:30]} O-O {[%emt 0:00:00]} 10. Nd2 {[%emt 0:01:09]} Qh4 {[%emt 0:11:25]} 11. f3 {[%emt 0:11:03]} Ng5 {[%emt 0:01:54]} 12. Rf2 $146 {[%emt 0:03:02]} ({Predecessor:} 12. d5 Na6 13. f4 Nb4 14. Qc3 Nxd3 15. Qxd3 Ne4 16. Nxe4 fxe4 17. Qxe4 exd5 18. cxd5 Qh5 19. Qd4 {½-½ (19) Valenzuela Fuentealba,L (2482)-Velasquez Ojeda,C (2319) Santiago de Chile 2007}) 12... d6 {[%emt 0:18:33]} 13. f4 {[%emt 0:26:59]} Nf7 {[%emt 0:03:01]} 14. e4 {[%emt 0:00:23]} Nh6 {[%emt 0:04:53]} 15. Nf3 {[%emt 0:08:05]} Qh5 {[%emt 0:03:17]} 16. h3 {[%emt 0:04:41]} Nd7 {[%emt 0:01:38]} 17. exf5 {[%emt 0:05:44]} exf5 {[%emt 0:00:09]} 18. Ng5 {[%emt 0:00:09]} Rae8 {[%emt 0:04:11]} 19. Bd2 {[%emt 0:01:10]} Nf6 {[%emt 0:16:38]} 20. d5 {[%emt 0:02:43]} Re7 $16 {[%emt 0:06:28]} 21. Re1 {[%emt 0:05:31]} Rfe8 {[%emt 0:00:09]} 22. Rxe7 {[%emt 0:01:33]} Rxe7 {[%emt 0:00:02]} 23. Bc3 {[%emt 0:01:48]} c6 {[%emt 0:05:05]} 24. Bxf5 {[%emt 0:08:50]} Nxf5 {[%emt 0:02:25]} 25. Qxf5 {[%emt 0:00:26]} Ne4 {[%emt 0:00:37]} 26. g4 {[%emt 0:03:43]} Qg6 {[%emt 0:06:35]} 27. Nxe4 {[%emt 0:00:18]} Qxf5 {[%emt 0:00:09]} 28. gxf5 {[%emt 0:00:04]} Rxe4 {[%emt 0:00:04]} 29. Rg2 {[%emt 0:00:04]} Bc8 {[%emt 0:06:04]} 30. Rxg7+ {[%emt 0:01:50]} Kf8 {[%emt 0:00:06]} 31. f6 {[%emt 0:04:19]} Rxc4 {[%emt 0:01:54]} 32. dxc6 {[%emt 0:02:46]} Rxc6 {[%emt 0:00:16]} 33. Rxh7 {[%emt 0:00:05]} a5 {[%emt 0:01:13]} 34. Kg2 {[%emt 0:01:27]} Be6 {[%emt 0:00:37]} 35. a3 {[%emt 0:00:35]} Rc5 {[%emt 0:01:55]} 36. h4 {[%emt 0:02:26]} Bf7 {[%emt 0:01:01]} 37. Kg3 {[%emt 0:03:17]} Rd5 {[%emt 0:00:44]} 38. Rh8+ {[%emt 0:00:59]} Bg8 {[%emt 0:00:08]} 39. h5 {[%emt 0:00:53]} Rd1 {[%emt 0:01:09]} 40. Kg2 {[%emt 0:00:00]} Rd3 {[%emt 0:00:00]} 41. h6 {[%emt 0:01:14]} 1-0

[Event "WYCC 2018 O18"]
[Site "Halkidiki"]
[Date "2018.10.22"]
[Round "4"]
[White "Dobrovoljc, Vid"]
[Black "Veleshnja, Zino"]
[Result "1-0"]
[ECO "B90"]
[WhiteElo "2309"]
[BlackElo "2155"]
[Annotator "ChessBase"]
[PlyCount "141"]
[EventDate "2018.10.20"]
[EventType "swiss"]
[EventCountry "GRE"]
[SourceTitle "playchess.com"]
[Source "ChessBase"]
[SourceQuality "1"]
[TimeControl "40/5400+30:1800+30"]

1. e4 {[%emt 0:00:00]} c5 {[%emt 0:00:00]} 2. Nf3 {[%emt 0:00:00]} d6 {[%emt 0:00:00]} 3. d4 {[%emt 0:00:00]} cxd4 {[%emt 0:00:00]} 4. Nxd4 {[%emt 0:00:06]} Nf6 {[%emt 0:00:00]} 5. Nc3 {[%emt 0:00:06]} a6 {[%emt 0:00:00]} 6. f3 {[%emt 0:02:13]} e5 {[%emt 0:00:14]} 7. Nb3 {[%emt 0:00:05]} Be6 {[%emt 0:00:08]} 8. Be3 {[%emt 0:00:31]} Nbd7 {[%emt 0:00:20]} 9. Qd2 {[%emt 0:07:24]} Be7 {[%emt 0:00:30]} 10. O-O-O {[%emt 0:04:02]} O-O {[%emt 0:00:26]} 11. g4 {[%emt 0:00:22]} b5 {[%emt 0:00:10]} 12. g5 {[%emt 0:00:24]} b4 {[%emt 0:00:34]} 13. Ne2 {[%emt 0:00:09]} Ne8 {[%emt 0:00:11]} 14. f4 {[%emt 0:00:14]} a5 {[%emt 0:00:40]} 15. f5 {[%emt 0:00:25]} a4 {[%emt 0:02:26]} 16. fxe6 {[%emt 0:01:00]} axb3 {[%emt 0:00:45]} 17. cxb3 {[%emt 0:00:02]} fxe6 {[%emt 0:01:11]} 18. Bh3 {[%emt 0:00:04]} Nc7 {[%emt 0:03:26]} 19. Kb1 {[%emt 0:03:06]} Qc8 {[%emt 0:06:25]} 20. Nc1 {[%emt 0:12:12]} Qb7 {[%emt 0:15:15]} 21. Qg2 {[%emt 0:03:10]} Rfd8 {[%emt 0:01:13]} 22. Rhf1 {[%emt 0:06:05]} Nf8 {[%emt 0:06:17]} 23. Bg4 {[%emt 0:04:52]} d5 {[%emt 0:04:37]} 24. exd5 {[%emt 0:11:17]} exd5 {[%emt 0:00:34]} 25. h4 {[%emt 0:00:42]} Qa6 {[%emt 0:08:22]} 26. h5 {[%emt 0:08:48]} d4 {[%emt 0:02:06]} 27. Qf3 {[%emt 0:01:37]} Nd5 {[%emt 0:06:34]} 28. Bd2 {[%emt 0:02:09]} Kh8 {[%emt 0:06:30]} 29. Qe4 {[%emt 0:19:35]} Nc3+ {[%emt 0:09:39]} 30. bxc3 {[%emt 0:00:05]} bxc3 {[%emt 0:00:26]} 31. Be2 {[%emt 0:00:25]} Qa3 {[%emt 0:02:05]} 32. Bxc3 {[%emt 0:06:54]} dxc3 {[%emt 0:00:10]} 33. Qc2 {[%emt 0:00:03]} Bxg5 {[%emt 0:01:50]} 34. Rxd8 {[%emt 0:00:29]} Rxd8 {[%emt 0:00:34]} 35. Qxc3 {[%emt 0:00:16]} Qe7 {[%emt 0:08:53]} 36. Qf3 {[%emt 0:04:04]} Bf6 {[%emt 0:02:08]} 37. Bd3 {[%emt 0:00:09]} Qa3 {[%emt 0:02:51]} 38. Rf2 {[%emt 0:02:40]} Rc8 {[%emt 0:01:46]} 39. Bc4 {[%emt 0:00:12]} Rd8 {[%emt 0:03:42]} 40. h6 {[%emt 0:00:00]} Ng6 {[%emt 0:00:00]} 41. hxg7+ {[%emt 0:08:03]} Bxg7 {[%emt 0:04:34]} 42. Rh2 {[%emt 0:03:08]} Qe7 {[%emt 0:06:57]} 43. Qh5 {[%emt 0:06:41]} Nf8 {[%emt 0:00:34]} 44. Qf7 {[%emt 0:02:48]} Qxf7 {[%emt 0:00:07]} 45. Bxf7 {[%emt 0:00:05]} Rd7 {[%emt 0:02:33]} 46. Bc4 {[%emt 0:00:06]} e4 {[%emt 0:01:23]} 47. a4 {[%emt 0:05:13]} Ng6 {[%emt 0:01:20]} 48. a5 {[%emt 0:02:50]} Ne5 {[%emt 0:01:21]} 49. Be6 {[%emt 0:00:55]} Rd6 {[%emt 0:01:45]} 50. Bf5 {[%emt 0:00:14]} e3 {[%emt 0:00:59]} 51. Rxh7+ {[%emt 0:00:44]} Kg8 {[%emt 0:00:10]} 52. Rh2 {[%emt 0:00:51]} Nf3 {[%emt 0:01:13]} 53. Ra2 {[%emt 0:01:23]} Rc6 {[%emt 0:01:13]} 54. Rc2 {[%emt 0:00:51]} Rd6 {[%emt 0:06:49]} 55. Bd3 {[%emt 0:01:15]} Ne1 {[%emt 0:01:08]} 56. Rc8+ {[%emt 0:00:28]} Kf7 {[%emt 0:00:06]} 57. a6 {[%emt 0:03:11]} Rd7 {[%emt 0:02:28]} 58. Bb5 {[%emt 0:00:34]} Rd2 {[%emt 0:04:58]} 59. Rc7+ {[%emt 0:00:28]} Kg6 {[%emt 0:00:05]} 60. Rxg7+ {[%emt 0:00:35]} Kxg7 {[%emt 0:00:02]} 61. a7 {[%emt 0:00:09]} Rd8 {[%emt 0:00:16]} 62. Bc6 {[%emt 0:00:06]} Kf6 {[%emt 0:00:49]} 63. a8=Q {[%emt 0:00:50]} Rxa8 {[%emt 0:00:01]} 64. Bxa8 {[%emt 0:00:06]} Ke5 {[%emt 0:00:03]} 65. Kb2 {[%emt 0:01:34]} Kd4 {[%emt 0:01:57]} 66. Bb7 {[%emt 0:00:35]} e2 {[%emt 0:01:00]} 67. Nxe2+ {[%emt 0:00:09]} Ke3 {[%emt 0:00:02]} 68. Nc1 {[%emt 0:00:11]} Kd2 {[%emt 0:00:24]} 69. b4 {[%emt 0:01:29]} Nc2 {[%emt 0:00:40]} 70. Nb3+ {[%emt 0:00:04]} Kd3 {[%emt 0:00:15]} 71. Ba6+ {[%emt 0:00:11]} 1-0

[Event "WYCC 2018 O18"]
[Site "Halkidiki"]
[Date "2018.10.22"]
[Round "4"]
[White "Kouskoutis, Georgios-Alexandros"]
[Black "Polyakov, Fedor"]
[Result "0-1"]
[ECO "B33"]
[WhiteElo "2296"]
[BlackElo "2036"]
[Annotator "NA"]
[PlyCount "124"]
[EventDate "2018.10.20"]
[EventType "swiss"]
[EventCountry "GRE"]
[SourceTitle "playchess.com"]
[Source "ChessBase"]
[SourceQuality "1"]
[TimeControl "40/5400+30:1800+30"]

1. e4 {[%emt 0:00:00]} c5 {[%emt 0:00:45]} 2. Nf3 {[%emt 0:00:00]} Nc6 {[%emt 0:00:06]} 3. d4 {[%emt 0:00:00]} cxd4 {[%emt 0:00:02]} 4. Nxd4 {[%emt 0:00:00]} Nf6 {[%emt 0:00:07]} 5. Nc3 {[%emt 0:00:10]} e5 {[%emt 0:00:48]} 6. Ndb5 {[%emt 0:00:08]} d6 {[%emt 0:00:15]} 7. Bg5 {[%emt 0:00:16]} a6 {[%emt 0:00:05]} 8. Na3 {[%emt 0:00:04]} b5 {[%emt 0:00:05]} 9. Nd5 {[%emt 0:00:09]} Be7 {[%emt 0:00:03]} 10. Bxf6 {[%emt 0:00:08]} Bxf6 {[%emt 0:00:09]} 11. c3 {[%emt 0:00:11]} Bg5 {[%emt 0:04:18]} 12. Nc2 {[%emt 0:03:47]} O-O {[%emt 0:03:08]} 13. h4 {[%emt 0:07:11]} Bh6 {[%emt 0:02:00]} 14. g3 {[%emt 0:02:18]} Ne7 {[%emt 0:02:50] B33: Sizilianisch (Lasker/Pelikan/Sweschnikow-Variante)} 15. Bh3 {[%emt 0:08:44] [#]} Nxd5 $146 {[%emt 0:07:16]} ({Vorgänger:} 15... Bxh3 16. Rxh3 a5 17. Kf1 Rc8 18. Nce3 Bxe3 19. Nxe3 Qd7 20. g4 Rfd8 {0-1 (55) Short,N (2674)-Topalov,V (2757) Wijk aan Zee 2005}) 16. Qxd5 {[%emt 0:04:22]} Bxh3 {[%emt 0:00:10]} 17. Rxh3 {[%emt 0:00:04]} Qd7 {[%emt 0:00:35]} 18. Rh2 {[%emt 0:10:22]} Qg4 {[%emt 0:02:57]} 19. Qd3 {[%emt 0:04:53]} f5 {[%emt 0:14:27]} 20. exf5 {[%emt 0:06:44]} Rae8 {[%emt 0:03:04]} 21. Qe2 $11 {[%emt 0:10:48]} Qxf5 {[%emt 0:13:00]} 22. g4 {[%emt 0:10:22]} Qf4 {[%emt 0:01:03]} 23. Rh3 {[%emt 0:02:10]} g6 {[%emt 0:03:42]} 24. Ne3 {[%emt 0:05:30]} Qe4 {[%emt 0:04:21]} 25. g5 {[%emt 0:03:27]} Bg7 {[%emt 0:00:21]} 26. Rd1 {[%emt 0:05:16]} Rf4 {[%emt 0:08:28]} 27. Rxd6 {[%emt 0:10:15]} Ref8 {[%emt 0:06:07]} 28. Rh2 {[%emt 0:01:30]} Qb1+ {[%emt 0:09:49]} 29. Rd1 {[%emt 0:00:27]} Qxa2 {[%emt 0:00:01]} 30. Nd5 {[%emt 0:02:34]} R4f7 {[%emt 0:01:37]} 31. h5 {[%emt 0:00:34]} e4 {[%emt 0:04:53]} 32. hxg6 {[%emt 0:00:13]} hxg6 {[%emt 0:00:02]} 33. Qxe4 {[%emt 0:02:29]} Qxb2 {[%emt 0:00:28]} 34. Qe6 {[%emt 0:00:57]} Bxc3+ {[%emt 0:01:04]} 35. Kf1 {[%emt 0:00:04]} Kg7 {[%emt 0:00:06]} 36. Qe3 {[%emt 0:01:15]} Be5 {[%emt 0:01:06]} 37. Rg2 {[%emt 0:00:29]} Rf3 {[%emt 0:02:58]} 38. Qc5 {[%emt 0:00:10]} R8f7 {[%emt 0:01:41]} 39. Kg1 {[%emt 0:00:34]} Qe2 {[%emt 0:01:52]} 40. Rf1 {[%emt 0:00:00]} Qc4 {[%emt 0:00:00]} 41. Qxc4 {[%emt 0:05:02]} bxc4 {[%emt 0:01:29]} 42. Rg4 {[%emt 0:01:07]} c3 {[%emt 0:01:06]} 43. Re4 {[%emt 0:01:33]} R7f5 {[%emt 0:03:34]} 44. Kg2 {[%emt 0:05:55]} Rd3 {[%emt 0:01:10]} 45. Ne3 {[%emt 0:00:14]} Rxg5+ {[%emt 0:00:39]} 46. Kf3 {[%emt 0:02:10]} Bd4 {[%emt 0:06:50]} 47. Rc1 {[%emt 0:04:17]} Bxe3 {[%emt 0:00:35]} 48. fxe3 {[%emt 0:00:06]} Rh5 {[%emt 0:03:32]} 49. Re6 {[%emt 0:03:19]} Rh3+ {[%emt 0:02:09]} 50. Kf4 {[%emt 0:00:21]} Kf7 {[%emt 0:00:50]} 51. Rxa6 {[%emt 0:01:59]} Rdxe3 {[%emt 0:00:22]} 52. Rc6 {[%emt 0:00:37]} Rhf3+ {[%emt 0:02:24]} 53. Kg4 {[%emt 0:00:29]} Rg3+ {[%emt 0:00:07]} 54. Kf4 {[%emt 0:00:46]} Kg7 {[%emt 0:05:03]} 55. Rc8 {[%emt 0:01:52]} Ref3+ {[%emt 0:00:52]} 56. Ke4 {[%emt 0:00:22]} Kh6 {[%emt 0:00:18]} 57. Rh1+ {[%emt 0:04:23]} Kg5 {[%emt 0:00:34]} 58. Rc6 {[%emt 0:00:40]} Rf4+ {[%emt 0:02:37]} 59. Ke5 {[%emt 0:00:23]} Re3+ {[%emt 0:00:24]} 60. Kd5 {[%emt 0:00:08]} Kf5 {[%emt 0:00:20]} 61. Rc8 {[%emt 0:03:09]} Re5+ {[%emt 0:00:30]} 62. Kd6 {[%emt 0:00:05]} Rd4+ {[%emt 0:00:08]} 0-1

[Event "WYCC 2018 O18"]
[Site "Halkidiki"]
[Date "2018.10.22"]
[Round "4"]
[White "Lazov, Toni"]
[Black "Ioannidis, Evgenios"]
[Result "1/2-1/2"]
[ECO "B66"]
[WhiteElo "2292"]
[BlackElo "2407"]
[Annotator "NA"]
[PlyCount "116"]
[EventDate "2018.10.20"]
[EventType "swiss"]
[EventCountry "GRE"]
[SourceTitle "playchess.com"]
[Source "ChessBase"]
[SourceQuality "1"]
[TimeControl "40/5400+30:1800+30"]

1. e4 {[%emt 0:00:00]} c5 {[%emt 0:00:26]} 2. Nf3 {[%emt 0:00:00]} d6 {[%emt 0:00:11]} 3. d4 {[%emt 0:00:00]} cxd4 {[%emt 0:00:10]} 4. Nxd4 {[%emt 0:00:00]} Nf6 {[%emt 0:00:07]} 5. Nc3 {[%emt 0:00:00]} Nc6 {[%emt 0:00:26]} 6. Bg5 {[%emt 0:00:08]} e6 {[%emt 0:00:18]} 7. Qd2 {[%emt 0:00:15]} a6 {[%emt 0:00:28]} 8. O-O-O {[%emt 0:00:42]} Be7 {[%emt 0:00:40]} 9. f3 {[%emt 0:04:53]} Nxd4 {[%emt 0:00:57]} 10. Qxd4 {[%emt 0:00:22]} b5 {[%emt 0:00:47]} 11. h4 {[%emt 0:05:05]} Bb7 {[%emt 0:01:16]} 12. Kb1 {[%emt 0:04:59]} O-O {[%emt 0:01:15]} 13. g4 {[%emt 0:09:28] LiveBook: 43 Games} Rc8 {[%emt 0:03:16]} 14. a3 {[%emt 0:11:54] B63: Sicilian: Richter-Rauzer: 7...Be7 and unusual Black 7th moves} Qa5 {[%emt 0:09:26]} (14... Qc7 15. Qd2 d5 16. e5 d4 17. Bxf6 gxf6 18. Bd3 Kg7 19. exf6+ Bxf6 {1-0 (42) Georgiadis,N (2522)-Draskovic,L (2449) Batumi 2018}) 15. Bd2 {[%emt 0:06:00]} Qc7 {[%emt 0:01:23]} 16. g5 {[%emt 0:00:57]} Nd7 {[%emt 0:00:05]} 17. h5 $146 {[%emt 0:06:58]} ({Predecessor:} 17. Be3 d5 18. exd5 Bxd5 19. Bf4 Qc6 20. Nxd5 Qxc2+ {1-0 (36) Paehtz,E (2343)-Plachkinova,T (2171) Yerevan 2000}) 17... Qc5 {[%emt 0:26:50]} 18. Qxc5 {[%emt 0:09:52]} dxc5 {[%emt 0:00:04]} 19. Bf4 {[%emt 0:03:05]} Rfd8 {[%emt 0:00:23]} 20. Bh3 {[%emt 0:03:17]} Nf8 {[%emt 0:05:26]} 21. Be3 {[%emt 0:02:38]} c4 {[%emt 0:14:35]} 22. Ne2 {[%emt 0:01:24]} Rxd1+ {[%emt 0:01:21]} 23. Rxd1 {[%emt 0:00:02]} Rd8 {[%emt 0:00:02]} 24. Rxd8 {[%emt 0:02:56]} Bxd8 {[%emt 0:00:03]} 25. b3 {[%emt 0:00:33]} cxb3 {[%emt 0:00:21]} 26. cxb3 {[%emt 0:00:02]} g6 {[%emt 0:00:40]} 27. h6 $11 {[%emt 0:10:16]} f6 {[%emt 0:08:12]} 28. gxf6 {[%emt 0:02:33]} Bxf6 {[%emt 0:00:04]} 29. Kc2 {[%emt 0:08:27]} Kf7 {[%emt 0:01:46]} 30. Kd3 {[%emt 0:00:49]} Be7 {[%emt 0:06:54]} 31. b4 {[%emt 0:02:02]} Nd7 {[%emt 0:01:53]} 32. f4 {[%emt 0:04:37]} Nf6 {[%emt 0:01:28]} 33. Ng3 {[%emt 0:00:26]} Bd8 {[%emt 0:11:20]} 34. f5 {[%emt 0:00:58]} gxf5 {[%emt 0:00:03]} 35. exf5 {[%emt 0:00:06]} e5 {[%emt 0:00:03]} 36. Ne2 {[%emt 0:01:42]} e4+ {[%emt 0:01:16]} 37. Kd2 {[%emt 0:00:22]} Nd5 {[%emt 0:01:07]} 38. Bg2 {[%emt 0:00:31]} Nxe3 {[%emt 0:01:52]} 39. Kxe3 {[%emt 0:00:01]} Bg5+ {[%emt 0:00:06]} 40. Kd4 {[%emt 0:00:00]} Bxh6 {[%emt 0:00:00]} 41. Bxe4 {[%emt 0:14:38]} Bg7+ {[%emt 0:01:12]} 42. Kd3 {[%emt 0:00:49]} Bxe4+ {[%emt 0:00:25]} 43. Kxe4 {[%emt 0:00:02]} Bb2 {[%emt 0:00:35]} 44. Nf4 {[%emt 0:01:22]} Bxa3 {[%emt 0:00:04]} 45. Nd5 {[%emt 0:03:35]} h5 {[%emt 0:01:24]} 46. Kf3 {[%emt 0:00:57]} Bxb4 {[%emt 0:01:08]} 47. Nxb4 {[%emt 0:00:25]} a5 {[%emt 0:00:03]} 48. Nc6 {[%emt 0:08:06]} a4 {[%emt 0:00:05]} 49. Nb4 {[%emt 0:00:04]} a3 {[%emt 0:01:57]} 50. Kf4 {[%emt 0:01:06]} Kf6 {[%emt 0:00:58]} 51. Nd5+ {[%emt 0:00:17]} Kg7 {[%emt 0:02:27]} 52. Nb4 {[%emt 0:00:01]} Kh6 {[%emt 0:04:59]} 53. Na2 {[%emt 0:01:05]} h4 {[%emt 0:01:17]} 54. Kg4 {[%emt 0:00:22]} h3 {[%emt 0:00:03]} 55. Kxh3 {[%emt 0:00:03]} Kg5 {[%emt 0:00:02]} 56. Kg3 {[%emt 0:00:16]} Kxf5 {[%emt 0:00:03]} 57. Kf3 {[%emt 0:00:04]} Ke5 {[%emt 0:00:09]} 58. Ke3 {[%emt 0:00:18]} Kd5 {[%emt 0:00:03] Kd4+} 1/2-1/2

[Event "WYCC 2018 O18"]
[Site "Halkidiki"]
[Date "2018.10.22"]
[Round "4"]
[White "Tifferet, Shaked"]
[Black "Miciano, John Marvin"]
[Result "1/2-1/2"]
[ECO "B12"]
[WhiteElo "2254"]
[BlackElo "2361"]
[Annotator "NA"]
[PlyCount "51"]
[EventDate "2018.10.20"]
[EventType "swiss"]
[EventCountry "GRE"]
[SourceTitle "playchess.com"]
[Source "ChessBase"]
[SourceQuality "1"]
[TimeControl "40/5400+30:1800+30"]

1. e4 {[%emt 0:00:00]} c6 {[%emt 0:00:00]} 2. d4 {[%emt 0:00:00]} d5 {[%emt 0:00:00]} 3. e5 {[%emt 0:00:20]} Bf5 {[%emt 0:00:05]} 4. Be3 {[%emt 0:00:12]} e6 {[%emt 0:00:58]} 5. Nd2 {[%emt 0:00:06]} Ne7 {[%emt 0:00:55] B12: Caro-Kann: Advance Variation} 6. Ngf3 {[%emt 0:00:35]} (6. f4 Nd7 7. Ngf3 Qb6 8. Nb3 a5 9. a4 f6 10. Be2 Ng6 11. O-O Be7 12. c4 fxe5 13. c5 {1-0 (68) Zvjaginsev,V (2633)-Turov,M (2600) Yaroslavl 2018}) 6... h6 {[%emt 0:02:00]} 7. Be2 {[%emt 0:00:30]} Bh7 {[%emt 0:01:46]} 8. O-O {[%emt 0:00:09]} Nf5 {[%emt 0:00:15]} 9. c3 {[%emt 0:06:43]} Be7 {[%emt 0:01:09]} 10. a4 {[%emt 0:02:03]} O-O $146 {[%emt 0:00:24]} ({Predecessor:} 10... Nxe3 11. fxe3 Bg5 12. Nxg5 hxg5 13. Bh5 Bf5 14. Bxf7+ Kxf7 {1-0 (47) Dos Santos,M-Mesquita,F Brazil CXEB 1994}) 11. Bf4 {[%emt 0:07:36]} g5 {[%emt 0:03:09]} 12. Bg3 {[%emt 0:07:04]} c5 {[%emt 0:01:03]} 13. dxc5 {[%emt 0:03:11]} Nd7 {[%emt 0:11:17]} 14. b4 {[%emt 0:22:00]} h5 {[%emt 0:03:36]} 15. h3 {[%emt 0:07:41]} Nxg3 {[%emt 0:01:21]} 16. fxg3 {[%emt 0:00:03]} Qc7 {[%emt 0:03:36]} 17. Nd4 {[%emt 0:05:14]} Qxe5 {[%emt 0:01:32]} 18. Bxh5 {[%emt 0:06:26]} Qe3+ {[%emt 0:18:09]} 19. Kh2 {[%emt 0:01:05]} Qxc3 {[%emt 0:00:27]} 20. N2b3 {[%emt 0:05:33]} Nf6 {[%emt 0:13:51]} ({But not} 20... Qxb4 21. c6 $17) 21. b5 {[%emt 0:03:09]} Ne4 {[%emt 0:09:57]} 22. Rf3 {[%emt 0:05:26]} Qb4 $11 {[%emt 0:00:11]} 23. Nc2 {[%emt 0:01:49]} Qc4 {[%emt 0:00:18]} 24. Ne3 {[%emt 0:01:53]} Qb4 {[%emt 0:00:17]} 25. Nc2 {[%emt 0:08:30]} Qc4 {[%emt 0:00:07]} 26. Ne3 {[%emt 0:00:53]} 1/2-1/2

[Event "WYCC 2018 O18"]
[Site "Halkidiki"]
[Date "2018.10.22"]
[Round "4"]
[White "Alexakis, Dimitris"]
[Black "Mitrabha, Guha"]
[Result "0-1"]
[ECO "B15"]
[WhiteElo "2186"]
[BlackElo "2352"]
[Annotator "NA"]
[PlyCount "76"]
[EventDate "2018.10.20"]
[EventType "swiss"]
[EventCountry "GRE"]
[SourceTitle "playchess.com"]
[Source "ChessBase"]
[SourceQuality "1"]
[TimeControl "40/5400+30:1800+30"]

1. e4 {[%emt 0:04:57]} c6 {[%emt 0:00:00]} 2. d4 {[%emt 0:00:11]} d5 {[%emt 0:00:00]} 3. Nc3 {[%emt 0:00:04]} dxe4 {[%emt 0:00:00]} 4. Nxe4 {[%emt 0:00:05]} Nf6 {[%emt 0:00:00]} 5. Nxf6+ {[%emt 0:00:26]} exf6 {[%emt 0:00:00]} 6. Nf3 {[%emt 0:00:05]} Bd6 {[%emt 0:00:00]} 7. Be2 {[%emt 0:00:15]} O-O {[%emt 0:00:03]} 8. O-O {[%emt 0:00:02]} Bg4 {[%emt 0:00:11]} 9. h3 {[%emt 0:02:36]} Bh5 {[%emt 0:00:06]} 10. Nh4 {[%emt 0:02:48] B15: Caro-Kann: 3 Nc3: 3...g6 and 3...dxe4 4 Nxe4 Nf6 5 Nxf6+ exf6} Bg6 {[%emt 0:05:17]} 11. Nxg6 {[%emt 0:05:25]} (11. Bd3 Bc7 12. c3 Qd6 13. g3 Qd7 14. Kh2 a5 15. a4 Na6 16. Nxg6 hxg6 17. Qf3 Bd6 {½-½ (64) Kannappan,P (2484)-Shimanov,A (2627) Philadelphia 2016}) 11... hxg6 {[%emt 0:00:04]} 12. Bf3 {[%emt 0:02:24]} Nd7 {[%emt 0:00:12]} 13. c4 $146 {[%emt 0:08:56]} ({Predecessor:} 13. Re1 f5 14. Qd3 Nf6 15. Bg5 Qc7 16. Bxf6 gxf6 17. c3 Rad8 18. Rad1 Kg7 19. g3 Rfe8 20. Rxe8 Rxe8 21. Kg2 a5 22. Qc4 {½-½ (22) Podinic,B (2274)-Mirkovic,S (2343) Belgrade 2012}) 13... f5 {[%emt 0:06:05]} 14. Re1 {[%emt 0:13:10]} Nf6 {[%emt 0:00:15]} 15. Qc2 {[%emt 0:12:07]} Bc7 {[%emt 0:00:36]} 16. Qd3 {[%emt 0:09:27]} Qd6 {[%emt 0:00:39]} 17. g3 {[%emt 0:00:17]} Rad8 {[%emt 0:00:12]} 18. Bf4 {[%emt 0:01:13]} Qd7 {[%emt 0:00:01]} 19. Bxc7 {[%emt 0:00:34]} Qxc7 {[%emt 0:00:02]} 20. Rad1 {[%emt 0:01:06]} Rd7 {[%emt 0:00:24]} 21. c5 {[%emt 0:13:22]} Rfd8 {[%emt 0:01:18]} 22. b4 {[%emt 0:00:13]} Nd5 {[%emt 0:00:40]} 23. Qc4 {[%emt 0:01:38]} a5 {[%emt 0:10:39]} 24. bxa5 {[%emt 0:16:47]} f4 {[%emt 0:03:17]} 25. g4 {[%emt 0:01:12]} Qxa5 {[%emt 0:00:19]} 26. Bxd5 {[%emt 0:02:52]} Rxd5 {[%emt 0:00:01]} 27. Re7 {[%emt 0:00:37]} R8d7 {[%emt 0:05:23]} 28. Rxd7 {[%emt 0:00:23]} Rxd7 {[%emt 0:00:02]} 29. Kg2 {[%emt 0:00:38]} Qd8 {[%emt 0:01:01]} 30. d5 {[%emt 0:00:33]} cxd5 {[%emt 0:06:19]} 31. Qxf4 {[%emt 0:00:03]} d4 {[%emt 0:00:03]} 32. Rd3 {[%emt 0:00:57]} Rd5 {[%emt 0:00:15]} 33. a3 {[%emt 0:00:34]} Qd7 {[%emt 0:00:38]} 34. Kg1 {[%emt 0:00:27]} g5 {[%emt 0:05:40]} 35. Qe4 {[%emt 0:00:23]} g6 {[%emt 0:00:10]} 36. f4 {[%emt 0:00:37]} gxf4 {[%emt 0:01:05]} 37. Qxf4 {[%emt 0:00:01]} Qe7 {[%emt 0:01:09]} 38. Kg2 {[%emt 0:01:03]} Qe2+ {[%emt 0:00:12]} 0-1